[Event "Titled Tuesday Blitz May 23 Late 2023"]
[White "Bachmann, Axel"]
[Black "Nihal Sarin"]
[WhiteFideId "3700488"]
[BlackFideId "25092340"]
[WhiteElo "2605"]
[BlackElo "2689"]
[Result "0-1"]
[Round "11"]
[TimeControl "180+2"]
[Date "2023.05.23"]
[WhiteClock "0:00:00"]
[BlackClock "0:00:05"]

1. Nf3 {[%clk 0:02:58]}  d5 {[%clk 0:02:56]} 2. e3 {[%clk 0:02:58]}  Nc6 {[%clk 0:02:53]} 3. d4 {[%clk 0:02:58]}  Bg4 {[%clk 0:02:46]} 4. Be2 {[%clk 0:02:53]}  e6 {[%clk 0:02:46]} 5. c4 {[%clk 0:02:53]}  dxc4 {[%clk 0:02:43]} 6. Qa4 {[%clk 0:02:43]}  Nf6 {[%clk 0:02:33]} 7. Nbd2 {[%clk 0:02:26]}  a6 {[%clk 0:02:30]} 8. Qxc4 {[%clk 0:02:18]}  Bd6 {[%clk 0:02:30]} 9. b3 {[%clk 0:02:17]}  O-O {[%clk 0:02:29]} 10. Bb2 {[%clk 0:02:17]}  Qe7 {[%clk 0:02:29]} 11. O-O {[%clk 0:02:15]}  Rfd8 {[%clk 0:02:28]} 12. h3 {[%clk 0:02:15]}  Bh5 {[%clk 0:02:26]} 13. Rfd1 {[%clk 0:02:08]}  h6 {[%clk 0:02:24]} 14. Rac1 {[%clk 0:02:05]}  Bg6 {[%clk 0:02:18]} 15. Ne5 {[%clk 0:01:45]}  Bxe5 {[%clk 0:02:10]} 16. dxe5 {[%clk 0:01:46]}  Nd5 {[%clk 0:02:11]} 17. Nf3 {[%clk 0:01:40]}  Rd7 {[%clk 0:02:00]} 18. a3 {[%clk 0:01:21]}  Rad8 {[%clk 0:01:40]} 19. b4 {[%clk 0:01:21]}  Bh5 {[%clk 0:01:36]} 20. Qb3 {[%clk 0:01:14]}  Nb6 {[%clk 0:01:18]} 21. Rxd7 {[%clk 0:01:09]}  Rxd7 {[%clk 0:01:19]} 22. Rd1 {[%clk 0:00:56]}  Qd8 {[%clk 0:01:05]} 23. Rxd7 {[%clk 0:00:55]}  Qxd7 {[%clk 0:01:06]} 24. Qc2 {[%clk 0:00:55]}  Bg6 {[%clk 0:01:04]} 25. Qb3 {[%clk 0:00:52]}  Be4 {[%clk 0:01:02]} 26. Nd4 {[%clk 0:00:49]}  Bd5 {[%clk 0:00:53]} 27. Qc2 {[%clk 0:00:49]}  Nxe5 {[%clk 0:00:49]} 28. Nf5 {[%clk 0:00:39]}  exf5 {[%clk 0:00:33]} 29. Bxe5 {[%clk 0:00:39]}  c6 {[%clk 0:00:34]} 30. Qc5 {[%clk 0:00:40]}  Nc8 {[%clk 0:00:30]} 31. f3 {[%clk 0:00:33]}  Qe6 {[%clk 0:00:29]} 32. Bf4 {[%clk 0:00:22]}  f6 {[%clk 0:00:25]} 33. Kf2 {[%clk 0:00:21]}  Kf7 {[%clk 0:00:21]} 34. a4 {[%clk 0:00:21]}  g5 {[%clk 0:00:18]} 35. Bg3 {[%clk 0:00:21]}  Qe7 {[%clk 0:00:18]} 36. Qd4 {[%clk 0:00:20]}  Qe6 {[%clk 0:00:18]} 37. b5 {[%clk 0:00:20]}  axb5 {[%clk 0:00:18]} 38. axb5 {[%clk 0:00:21]}  Ne7 {[%clk 0:00:19]} 39. Qb6 {[%clk 0:00:20]}  cxb5 {[%clk 0:00:17]} 40. Qxb5 {[%clk 0:00:20]}  Bc6 {[%clk 0:00:16]} 41. Qa5 {[%clk 0:00:19]}  Nd5 {[%clk 0:00:16]} 42. Qd2 {[%clk 0:00:18]}  b5 {[%clk 0:00:12]} 43. Qd4 {[%clk 0:00:17]}  Kg6 {[%clk 0:00:09]} 44. h4 {[%clk 0:00:16]}  Ne7 {[%clk 0:00:09]} 45. Qc5 {[%clk 0:00:13]}  Qd7 {[%clk 0:00:06]} 46. Qb4 {[%clk 0:00:12]}  Nd5 {[%clk 0:00:06]} 47. Qf8 {[%clk 0:00:12]}  Qe8 {[%clk 0:00:04]} 48. Qd6 {[%clk 0:00:09]}  Qd7 {[%clk 0:00:04]} 49. Qf8 {[%clk 0:00:09]}  Qe8 {[%clk 0:00:05]} 50. Qc5 {[%clk 0:00:10]}  Kg7 {[%clk 0:00:04]} 51. Bd3 {[%clk 0:00:10]}  Qe6 {[%clk 0:00:04]} 52. Qa7+ {[%clk 0:00:08]}  Qd7 {[%clk 0:00:03]} 53. Qc5 {[%clk 0:00:06]}  f4 {[%clk 0:00:04]} 54. exf4 {[%clk 0:00:06]}  gxf4 {[%clk 0:00:05]} 55. Bh2 {[%clk 0:00:07]}  b4 {[%clk 0:00:05]} 56. Be4 {[%clk 0:00:06]}  b3 {[%clk 0:00:06]} 57. Qd4 {[%clk 0:00:04]}  Qb7 {[%clk 0:00:05]} 58. Bxd5 {[%clk 0:00:04]}  Bxd5 {[%clk 0:00:06]} 59. Qb2 {[%clk 0:00:04]}  Qb6+ {[%clk 0:00:06]} 60. Ke1 {[%clk 0:00:02]}  Qe3+ {[%clk 0:00:06]} 61. Kd1 {[%clk 0:00:03]}  Bc4 {[%clk 0:00:05]} 62. Qa3 {[%clk 0:00:00]}  Qe2+ {[%clk 0:00:05]} 0-1


[Site "https://www.chess.com"]

[Event "Titled Tuesday Blitz May 23 Late 2023"]
[White "Rasulov, Vugar"]
[Black "Moroni, Luca Jr"]
[WhiteFideId "13402390"]
[BlackFideId "865834"]
[WhiteElo "2509"]
[BlackElo "2569"]
[Result "0-1"]
[Round "11"]
[TimeControl "180+2"]
[Date "2023.05.23"]
[WhiteClock "0:00:00"]
[BlackClock "0:00:11"]

1. e4 {[%clk 0:03:00]}  g6 {[%clk 0:03:00]} 2. d4 {[%clk 0:03:00]}  Bg7 {[%clk 0:03:01]} 3. Nf3 {[%clk 0:02:59]}  d6 {[%clk 0:03:01]} 4. Bc4 {[%clk 0:02:59]}  e6 {[%clk 0:03:01]} 5. O-O {[%clk 0:02:59]}  a6 {[%clk 0:03:01]} 6. Re1 {[%clk 0:02:56]}  b6 {[%clk 0:02:59]} 7. a4 {[%clk 0:02:51]}  Bb7 {[%clk 0:02:59]} 8. Nc3 {[%clk 0:02:51]}  Nd7 {[%clk 0:02:58]} 9. Bg5 {[%clk 0:02:49]}  Ne7 {[%clk 0:02:53]} 10. Qd2 {[%clk 0:02:44]}  h6 {[%clk 0:02:52]} 11. Be3 {[%clk 0:02:42]}  g5 {[%clk 0:02:51]} 12. d5 {[%clk 0:02:39]}  e5 {[%clk 0:02:50]} 13. Ne2 {[%clk 0:02:32]}  f5 {[%clk 0:02:46]} 14. exf5 {[%clk 0:02:27]}  Nxf5 {[%clk 0:02:47]} 15. Bd3 {[%clk 0:02:27]}  O-O {[%clk 0:02:42]} 16. a5 {[%clk 0:02:00]}  b5 {[%clk 0:02:37]} 17. c4 {[%clk 0:01:49]}  bxc4 {[%clk 0:02:32]} 18. Bxf5 {[%clk 0:01:49]}  Rxf5 {[%clk 0:02:31]} 19. Ng3 {[%clk 0:01:50]}  Rxf3 {[%clk 0:02:30]} 20. gxf3 {[%clk 0:01:50]}  Nf6 {[%clk 0:02:29]} 21. Ra4 {[%clk 0:01:34]}  Bxd5 {[%clk 0:02:27]} 22. Ne4 {[%clk 0:01:22]}  Bf7 {[%clk 0:02:26]} 23. h4 {[%clk 0:00:54]}  Qd7 {[%clk 0:02:20]} 24. Nxf6+ {[%clk 0:00:41]}  Bxf6 {[%clk 0:02:21]} 25. hxg5 {[%clk 0:00:42]}  hxg5 {[%clk 0:02:18]} 26. Bxg5 {[%clk 0:00:42]}  Bg7 {[%clk 0:02:15]} 27. Bh6 {[%clk 0:00:31]}  Bf6 {[%clk 0:01:53]} 28. Bg5 {[%clk 0:00:30]}  Bh8 {[%clk 0:01:48]} 29. Ra3 {[%clk 0:00:28]}  Qf5 {[%clk 0:01:14]} 30. f4 {[%clk 0:00:28]}  Be6 {[%clk 0:01:07]} 31. Rg3 {[%clk 0:00:27]}  Kf7 {[%clk 0:01:06]} 32. Ree3 {[%clk 0:00:22]}  e4 {[%clk 0:01:04]} 33. Qe2 {[%clk 0:00:21]}  d5 {[%clk 0:00:55]} 34. Qh5+ {[%clk 0:00:20]}  Qg6 {[%clk 0:00:54]} 35. Qh4 {[%clk 0:00:18]}  Bd4 {[%clk 0:00:48]} 36. Bh6 {[%clk 0:00:09]}  Bf6 {[%clk 0:00:33]} 37. Qh2 {[%clk 0:00:04]}  Qf5 {[%clk 0:00:30]} 38. Bg5 {[%clk 0:00:03]}  Rh8 {[%clk 0:00:29]} 39. Qg2 {[%clk 0:00:03]}  Bd4 {[%clk 0:00:28]} 40. Re2 {[%clk 0:00:03]}  c5 {[%clk 0:00:26]} 41. Rd2 {[%clk 0:00:02]}  Rh3 {[%clk 0:00:17]} 42. Rxh3 {[%clk 0:00:02]}  Qxh3 {[%clk 0:00:18]} 43. Qxh3 {[%clk 0:00:02]}  Bxh3 {[%clk 0:00:19]} 44. Kh2 {[%clk 0:00:02]}  Bf5 {[%clk 0:00:18]} 45. Kg3 {[%clk 0:00:03]}  Ke6 {[%clk 0:00:18]} 46. Bd8 {[%clk 0:00:02]}  Bg7 {[%clk 0:00:16]} 47. Bb6 {[%clk 0:00:02]}  Kd6 {[%clk 0:00:17]} 48. Rd1 {[%clk 0:00:01]}  d4 {[%clk 0:00:17]} 49. Rh1 {[%clk 0:00:02]}  d3 {[%clk 0:00:17]} 50. Rh5 {[%clk 0:00:01]}  Ke6 {[%clk 0:00:16]} 51. Rh1 {[%clk 0:00:01]}  Bxb2 {[%clk 0:00:15]} 52. Bxc5 {[%clk 0:00:01]}  Kd5 {[%clk 0:00:15]} 53. Be3 {[%clk 0:00:01]}  c3 {[%clk 0:00:16]} 54. Rh5 {[%clk 0:00:02]}  Ke6 {[%clk 0:00:14]} 55. Rh6+ {[%clk 0:00:02]}  Kd7 {[%clk 0:00:14]} 56. Rb6 {[%clk 0:00:01]}  d2 {[%clk 0:00:13]} 57. Rb7+ {[%clk 0:00:02]}  Kc8 {[%clk 0:00:11]} 58. Rb6 {[%clk 0:00:00]}  d1=Q {[%clk 0:00:11]} 0-1


[Site "https://www.chess.com"]

[Event "Titled Tuesday Blitz May 23 Late 2023"]
[White "Martinez Alcantara, Jose Eduardo"]
[Black "Sethuraman, S.P."]
[WhiteFideId "3805662"]
[BlackFideId "5021596"]
[WhiteElo "2711"]
[BlackElo "2543"]
[Result "1-0"]
[Round "11"]
[TimeControl "180+2"]
[Date "2023.05.23"]
[WhiteClock "0:00:07"]
[BlackClock "0:00:00"]

1. e4 {[%clk 0:02:58]}  e5 {[%clk 0:03:00]} 2. Nf3 {[%clk 0:02:58]}  Nc6 {[%clk 0:03:00]} 3. Nc3 {[%clk 0:02:58]}  Nf6 {[%clk 0:03:00]} 4. h3 {[%clk 0:02:59]}  d5 {[%clk 0:02:59]} 5. exd5 {[%clk 0:03:00]}  Nxd5 {[%clk 0:02:59]} 6. Bb5 {[%clk 0:03:01]}  Nxc3 {[%clk 0:02:58]} 7. bxc3 {[%clk 0:03:02]}  Bd6 {[%clk 0:02:58]} 8. O-O {[%clk 0:03:02]}  O-O {[%clk 0:02:58]} 9. d4 {[%clk 0:03:03]}  exd4 {[%clk 0:02:55]} 10. cxd4 {[%clk 0:03:03]}  a6 {[%clk 0:02:54]} 11. Bd3 {[%clk 0:02:51]}  h6 {[%clk 0:02:43]} 12. c3 {[%clk 0:02:48]}  Qf6 {[%clk 0:02:41]} 13. Nd2 {[%clk 0:02:41]}  Bf5 {[%clk 0:02:38]} 14. Ne4 {[%clk 0:02:36]}  Qg6 {[%clk 0:02:29]} 15. Qf3 {[%clk 0:02:35]}  Ne7 {[%clk 0:02:28]} 16. Re1 {[%clk 0:02:29]}  Rae8 {[%clk 0:02:26]} 17. Nxd6 {[%clk 0:02:03]}  cxd6 {[%clk 0:02:16]} 18. Bf1 {[%clk 0:01:48]}  Nc6 {[%clk 0:02:09]} 19. Ba3 {[%clk 0:01:45]}  Be4 {[%clk 0:02:06]} 20. Qf4 {[%clk 0:01:30]}  Re6 {[%clk 0:01:23]} 21. Bxd6 {[%clk 0:01:27]}  Rxd6 {[%clk 0:01:18]} 22. Qxe4 {[%clk 0:01:27]}  Qxe4 {[%clk 0:01:16]} 23. Rxe4 {[%clk 0:01:28]}  Rc8 {[%clk 0:01:16]} 24. Rb1 {[%clk 0:01:10]}  b5 {[%clk 0:01:08]} 25. a4 {[%clk 0:01:06]}  bxa4 {[%clk 0:00:51]} 26. Bxa6 {[%clk 0:01:06]}  Rc7 {[%clk 0:00:50]} 27. Bd3 {[%clk 0:00:47]}  g6 {[%clk 0:00:47]} 28. Ra1 {[%clk 0:00:30]}  Ne7 {[%clk 0:00:35]} 29. c4 {[%clk 0:00:25]}  Nc6 {[%clk 0:00:30]} 30. d5 {[%clk 0:00:22]}  Nb4 {[%clk 0:00:29]} 31. Bf1 {[%clk 0:00:18]}  Na6 {[%clk 0:00:21]} 32. Re2 {[%clk 0:00:16]}  Nc5 {[%clk 0:00:21]} 33. Rb2 {[%clk 0:00:17]}  Kg7 {[%clk 0:00:19]} 34. Rb5 {[%clk 0:00:17]}  Kf6 {[%clk 0:00:19]} 35. g3 {[%clk 0:00:17]}  Ke5 {[%clk 0:00:19]} 36. Rxc5 {[%clk 0:00:15]}  Rxc5 {[%clk 0:00:18]} 37. Rxa4 {[%clk 0:00:16]}  f5 {[%clk 0:00:18]} 38. Kg2 {[%clk 0:00:16]}  g5 {[%clk 0:00:18]} 39. Ra8 {[%clk 0:00:15]}  Kd4 {[%clk 0:00:17]} 40. Rf8 {[%clk 0:00:15]}  Ke5 {[%clk 0:00:16]} 41. Bd3 {[%clk 0:00:15]}  Kd4 {[%clk 0:00:14]} 42. Bxf5 {[%clk 0:00:14]}  Rxc4 {[%clk 0:00:14]} 43. Be6 {[%clk 0:00:14]}  Rc2 {[%clk 0:00:14]} 44. Rf6 {[%clk 0:00:13]}  h5 {[%clk 0:00:07]} 45. Rf5 {[%clk 0:00:13]}  g4 {[%clk 0:00:07]} 46. Rxh5 {[%clk 0:00:12]}  gxh3+ {[%clk 0:00:06]} 47. Rxh3 {[%clk 0:00:13]}  Ke5 {[%clk 0:00:05]} 48. Rh5+ {[%clk 0:00:13]}  Kf6 {[%clk 0:00:05]} 49. Rf5+ {[%clk 0:00:14]}  Kg7 {[%clk 0:00:05]} 50. Rf4 {[%clk 0:00:15]}  Rb6 {[%clk 0:00:05]} 51. g4 {[%clk 0:00:12]}  Rd2 {[%clk 0:00:05]} 52. Kg3 {[%clk 0:00:12]}  Rb1 {[%clk 0:00:04]} 53. Rf7+ {[%clk 0:00:11]}  Kg6 {[%clk 0:00:04]} 54. Rf4 {[%clk 0:00:11]}  Rg1+ {[%clk 0:00:03]} 55. Kh2 {[%clk 0:00:12]}  Rf1 {[%clk 0:00:03]} 56. Kg2 {[%clk 0:00:12]}  Re1 {[%clk 0:00:04]} 57. Rf8 {[%clk 0:00:06]}  Kg7 {[%clk 0:00:04]} 58. Rf5 {[%clk 0:00:07]}  Kg6 {[%clk 0:00:04]} 59. Kg3 {[%clk 0:00:05]}  Rd3+ {[%clk 0:00:03]} 60. f3 {[%clk 0:00:05]}  Rg1+ {[%clk 0:00:03]} 61. Kf4 {[%clk 0:00:05]}  Rd4+ {[%clk 0:00:03]} 62. Ke5 {[%clk 0:00:05]}  Rdd1 {[%clk 0:00:02]} 63. Rf6+ {[%clk 0:00:06]}  Kg7 {[%clk 0:00:03]} 64. Rf7+ {[%clk 0:00:07]}  Kg6 {[%clk 0:00:03]} 65. f4 {[%clk 0:00:07]}  Rge1+ {[%clk 0:00:00]} 66. Kd6 {[%clk 0:00:07]} 1-0


[Site "https://www.chess.com"]

[Event "Titled Tuesday Blitz May 23 Late 2023"]
[White "Duda, Jan-Krzysztof"]
[Black "Zemlyanskii, Ivan"]
[WhiteFideId "1170546"]
[BlackFideId "24249971"]
[WhiteElo "2790"]
[BlackElo "2421"]
[Result "1-0"]
[Round "11"]
[TimeControl "180+2"]
[Date "2023.05.23"]
[WhiteClock "0:01:25"]
[BlackClock "0:00:01"]

1. Nf3 {[%clk 0:03:00]}  d5 {[%clk 0:02:59]} 2. g3 {[%clk 0:02:59]}  Nf6 {[%clk 0:02:59]} 3. Bg2 {[%clk 0:02:59]}  c5 {[%clk 0:03:00]} 4. O-O {[%clk 0:02:58]}  e6 {[%clk 0:03:00]} 5. c4 {[%clk 0:02:57]}  d4 {[%clk 0:03:01]} 6. e3 {[%clk 0:02:56]}  Nc6 {[%clk 0:03:00]} 7. exd4 {[%clk 0:02:56]}  cxd4 {[%clk 0:03:01]} 8. d3 {[%clk 0:02:56]}  Bd6 {[%clk 0:03:01]} 9. Bg5 {[%clk 0:02:54]}  h6 {[%clk 0:03:02]} 10. Bxf6 {[%clk 0:02:54]}  Qxf6 {[%clk 0:03:03]} 11. Nbd2 {[%clk 0:02:53]}  Qe7 {[%clk 0:03:02]} 12. a3 {[%clk 0:02:51]}  a5 {[%clk 0:03:02]} 13. Qa4 {[%clk 0:02:48]}  Ra6 {[%clk 0:02:49]} 14. Nxd4 {[%clk 0:02:42]}  Bd7 {[%clk 0:02:44]} 15. Nxc6 {[%clk 0:02:41]}  bxc6 {[%clk 0:02:32]} 16. b4 {[%clk 0:02:24]}  O-O {[%clk 0:02:30]} 17. c5 {[%clk 0:02:24]}  Be5 {[%clk 0:02:23]} 18. Rab1 {[%clk 0:02:17]}  Rfa8 {[%clk 0:02:18]} 19. Qd1 {[%clk 0:02:16]}  axb4 {[%clk 0:02:11]} 20. axb4 {[%clk 0:02:17]}  Rb8 {[%clk 0:02:06]} 21. Nf3 {[%clk 0:02:04]}  Bc3 {[%clk 0:01:50]} 22. Qc1 {[%clk 0:02:04]}  Qf6 {[%clk 0:01:17]} 23. d4 {[%clk 0:02:04]}  Bxb4 {[%clk 0:00:59]} 24. Qc4 {[%clk 0:02:03]}  Ra4 {[%clk 0:00:59]} 25. Ne5 {[%clk 0:02:04]}  Bc8 {[%clk 0:00:23]} 26. Nxc6 {[%clk 0:01:59]}  Ba6 {[%clk 0:00:23]} 27. Qc2 {[%clk 0:01:55]}  Bxf1 {[%clk 0:00:15]} 28. Bxf1 {[%clk 0:01:53]}  Rba8 {[%clk 0:00:13]} 29. Nxb4 {[%clk 0:01:35]}  Qxd4 {[%clk 0:00:11]} 30. Bg2 {[%clk 0:01:27]}  Rc8 {[%clk 0:00:06]} 31. Qxa4 {[%clk 0:01:26]}  Qxc5 {[%clk 0:00:01]} 32. Nc6 {[%clk 0:01:25]} 1-0


[Site "https://www.chess.com"]

[Event "Titled Tuesday Blitz May 23 Late 2023"]
[White "Mirimanian, Hayk"]
[Black "Ibarra Jerez, Jose Carlos"]
[WhiteFideId "4700180"]
[BlackFideId "2226332"]
[WhiteElo "2280"]
[BlackElo "2638"]
[Result "0-1"]
[Round "11"]
[TimeControl "180+2"]
[Date "2023.05.23"]
[WhiteClock "0:00:01"]
[BlackClock "0:00:38"]

1. e4 {[%clk 0:03:00]}  c5 {[%clk 0:02:59]} 2. Nf3 {[%clk 0:03:01]}  e6 {[%clk 0:02:58]} 3. d4 {[%clk 0:02:55]}  cxd4 {[%clk 0:02:58]} 4. Nxd4 {[%clk 0:02:55]}  Bc5 {[%clk 0:02:59]} 5. Nb3 {[%clk 0:02:47]}  Bb6 {[%clk 0:02:59]} 6. c4 {[%clk 0:02:46]}  Ne7 {[%clk 0:02:59]} 7. Nc3 {[%clk 0:02:43]}  O-O {[%clk 0:02:59]} 8. Be2 {[%clk 0:02:35]}  f5 {[%clk 0:02:59]} 9. O-O {[%clk 0:02:33]}  f4 {[%clk 0:02:59]} 10. c5 {[%clk 0:02:28]}  Bc7 {[%clk 0:02:59]} 11. Nb5 {[%clk 0:02:28]}  Be5 {[%clk 0:02:59]} 12. Nd6 {[%clk 0:02:23]}  Nbc6 {[%clk 0:02:57]} 13. Nc4 {[%clk 0:02:20]}  Ng6 {[%clk 0:02:58]} 14. Nxe5 {[%clk 0:02:13]}  Ncxe5 {[%clk 0:02:59]} 15. f3 {[%clk 0:02:12]}  b6 {[%clk 0:02:59]} 16. Kh1 {[%clk 0:01:58]}  Qg5 {[%clk 0:02:51]} 17. Bd2 {[%clk 0:01:51]}  bxc5 {[%clk 0:02:32]} 18. Nxc5 {[%clk 0:01:48]}  d6 {[%clk 0:01:46]} 19. Nb3 {[%clk 0:01:39]}  Rb8 {[%clk 0:01:43]} 20. Rc1 {[%clk 0:01:35]}  h6 {[%clk 0:01:32]} 21. Be1 {[%clk 0:01:33]}  Nh4 {[%clk 0:01:29]} 22. Bxh4 {[%clk 0:01:31]}  Qxh4 {[%clk 0:01:29]} 23. Qxd6 {[%clk 0:01:32]}  Nd7 {[%clk 0:01:24]} 24. Rxc8 {[%clk 0:01:30]}  Rbxc8 {[%clk 0:01:20]} 25. Qxd7 {[%clk 0:01:30]}  Rc2 {[%clk 0:01:20]} 26. Qxe6+ {[%clk 0:01:30]}  Kh8 {[%clk 0:01:20]} 27. Bd3 {[%clk 0:00:29]}  Rxb2 {[%clk 0:01:17]} 28. Nc5 {[%clk 0:00:22]}  Qg5 {[%clk 0:01:12]} 29. Qg4 {[%clk 0:00:12]}  Qxc5 {[%clk 0:01:10]} 30. e5 {[%clk 0:00:13]}  Rb6 {[%clk 0:00:50]} 31. Re1 {[%clk 0:00:11]}  Qc3 {[%clk 0:00:48]} 32. Rd1 {[%clk 0:00:01]}  Qxd3 {[%clk 0:00:38]} 0-1


[Site "https://www.chess.com"]

[Event "Titled Tuesday Blitz May 23 Late 2023"]
[White "Bernabeu Lopez, Carlos Javier"]
[Black "Fridman, Daniel"]
[WhiteFideId "2235366"]
[BlackFideId "11600454"]
[WhiteElo "2344"]
[BlackElo "2525"]
[Result "0-1"]
[Round "11"]
[TimeControl "180+2"]
[Date "2023.05.23"]
[WhiteClock "0:00:53"]
[BlackClock "0:00:20"]

1. e4 {[%clk 0:03:00]}  c6 {[%clk 0:02:51]} 2. Nc3 {[%clk 0:03:00]}  d5 {[%clk 0:02:51]} 3. Nf3 {[%clk 0:03:01]}  Bg4 {[%clk 0:02:48]} 4. h3 {[%clk 0:03:01]}  Bh5 {[%clk 0:02:48]} 5. d3 {[%clk 0:02:56]}  Nf6 {[%clk 0:02:45]} 6. Be2 {[%clk 0:02:56]}  e6 {[%clk 0:02:43]} 7. O-O {[%clk 0:02:54]}  Bb4 {[%clk 0:02:40]} 8. e5 {[%clk 0:02:49]}  Nfd7 {[%clk 0:02:39]} 9. d4 {[%clk 0:02:50]}  O-O {[%clk 0:02:36]} 10. Nb1 {[%clk 0:02:44]}  Be7 {[%clk 0:02:33]} 11. c3 {[%clk 0:02:44]}  c5 {[%clk 0:02:34]} 12. Be3 {[%clk 0:02:42]}  Nc6 {[%clk 0:02:34]} 13. Nbd2 {[%clk 0:02:42]}  Bg6 {[%clk 0:02:28]} 14. Re1 {[%clk 0:02:41]}  Qb6 {[%clk 0:02:27]} 15. Qb3 {[%clk 0:02:41]}  c4 {[%clk 0:02:26]} 16. Qxb6 {[%clk 0:02:41]}  axb6 {[%clk 0:02:27]} 17. a3 {[%clk 0:02:41]}  b5 {[%clk 0:02:27]} 18. Rac1 {[%clk 0:02:38]}  Nb6 {[%clk 0:02:24]} 19. Bd1 {[%clk 0:02:38]}  Na4 {[%clk 0:02:25]} 20. Bxa4 {[%clk 0:02:38]}  bxa4 {[%clk 0:02:26]} 21. Bg5 {[%clk 0:02:35]}  Ra6 {[%clk 0:02:20]} 22. Bxe7 {[%clk 0:02:34]}  Nxe7 {[%clk 0:02:21]} 23. Nf1 {[%clk 0:02:31]}  Rb6 {[%clk 0:02:11]} 24. Re2 {[%clk 0:02:31]}  Ra8 {[%clk 0:02:03]} 25. Ne1 {[%clk 0:02:18]}  Ra5 {[%clk 0:02:00]} 26. Rd1 {[%clk 0:02:17]}  Rab5 {[%clk 0:01:53]} 27. Rdd2 {[%clk 0:02:17]}  Nc6 {[%clk 0:01:42]} 28. f3 {[%clk 0:02:18]}  Na5 {[%clk 0:01:41]} 29. Rf2 {[%clk 0:02:18]}  f6 {[%clk 0:01:19]} 30. exf6 {[%clk 0:02:14]}  gxf6 {[%clk 0:01:19]} 31. g4 {[%clk 0:02:11]}  Kf7 {[%clk 0:01:14]} 32. h4 {[%clk 0:02:10]}  h6 {[%clk 0:01:13]} 33. Ng2 {[%clk 0:02:01]}  Bb1 {[%clk 0:01:03]} 34. Nf4 {[%clk 0:01:59]}  Nc6 {[%clk 0:00:59]} 35. Rfe2 {[%clk 0:01:56]}  Ne7 {[%clk 0:00:55]} 36. Ng3 {[%clk 0:01:54]}  Bd3 {[%clk 0:00:50]} 37. Rf2 {[%clk 0:01:45]}  e5 {[%clk 0:00:50]} 38. dxe5 {[%clk 0:01:30]}  fxe5 {[%clk 0:00:51]} 39. Ng2 {[%clk 0:01:27]}  Ke8 {[%clk 0:00:44]} 40. Ne1 {[%clk 0:01:24]}  e4 {[%clk 0:00:43]} 41. Nxd3 {[%clk 0:01:17]}  exd3 {[%clk 0:00:33]} 42. f4 {[%clk 0:01:13]}  Re6 {[%clk 0:00:31]} 43. Kf1 {[%clk 0:01:12]}  Re3 {[%clk 0:00:31]} 44. Kg2 {[%clk 0:01:11]}  Ng6 {[%clk 0:00:30]} 45. h5 {[%clk 0:01:10]}  Ne7 {[%clk 0:00:28]} 46. Rf3 {[%clk 0:01:10]}  Re1 {[%clk 0:00:26]} 47. Rf1 {[%clk 0:01:11]}  Rxf1 {[%clk 0:00:23]} 48. Kxf1 {[%clk 0:01:12]}  Rb6 {[%clk 0:00:23]} 49. Kf2 {[%clk 0:01:11]}  Kf7 {[%clk 0:00:23]} 50. Ke3 {[%clk 0:01:07]}  Re6+ {[%clk 0:00:20]} 51. Kd4 {[%clk 0:01:07]}  b6 {[%clk 0:00:21]} 52. Rf2 {[%clk 0:01:01]}  Re1 {[%clk 0:00:21]} 53. g5 {[%clk 0:00:58]}  Ke6 {[%clk 0:00:21]} 54. f5+ {[%clk 0:00:58]}  Kd6 {[%clk 0:00:21]} 55. Ne2 {[%clk 0:00:53]}  Rxe2 {[%clk 0:00:20]} 0-1


[Site "https://www.chess.com"]

[Event "Titled Tuesday Blitz May 23 Late 2023"]
[White "Arabidze, Meri"]
[Black "Krzyzanowski, Marcin"]
[WhiteFideId "13604040"]
[BlackFideId "1132199"]
[WhiteElo "2405"]
[BlackElo "2471"]
[Result "1-0"]
[Round "11"]
[TimeControl "180+2"]
[Date "2023.05.23"]
[WhiteClock "0:00:40"]
[BlackClock "0:00:02"]

1. d4 {[%clk 0:03:00]}  Nf6 {[%clk 0:02:58]} 2. c4 {[%clk 0:03:00]}  d6 {[%clk 0:02:57]} 3. g3 {[%clk 0:03:00]}  e5 {[%clk 0:02:54]} 4. Bg2 {[%clk 0:03:00]}  Nbd7 {[%clk 0:02:48]} 5. Nf3 {[%clk 0:02:58]}  g6 {[%clk 0:02:46]} 6. O-O {[%clk 0:02:58]}  Bg7 {[%clk 0:02:45]} 7. Nc3 {[%clk 0:02:58]}  O-O {[%clk 0:02:45]} 8. e4 {[%clk 0:02:59]}  h6 {[%clk 0:02:34]} 9. Re1 {[%clk 0:02:59]}  Re8 {[%clk 0:02:30]} 10. h3 {[%clk 0:02:58]}  exd4 {[%clk 0:02:27]} 11. Nxd4 {[%clk 0:02:59]}  Nc5 {[%clk 0:02:26]} 12. f3 {[%clk 0:02:35]}  c6 {[%clk 0:02:19]} 13. Be3 {[%clk 0:02:35]}  h5 {[%clk 0:02:12]} 14. Qd2 {[%clk 0:02:18]}  a5 {[%clk 0:02:09]} 15. Rad1 {[%clk 0:02:17]}  Ne6 {[%clk 0:01:48]} 16. Nxe6 {[%clk 0:02:11]}  Bxe6 {[%clk 0:01:48]} 17. b3 {[%clk 0:02:09]}  Nd7 {[%clk 0:01:42]} 18. Bd4 {[%clk 0:02:04]}  Bf8 {[%clk 0:01:22]} 19. f4 {[%clk 0:02:04]}  f5 {[%clk 0:01:18]} 20. exf5 {[%clk 0:01:51]}  Bxf5 {[%clk 0:01:19]} 21. Ne4 {[%clk 0:01:50]}  a4 {[%clk 0:01:02]} 22. b4 {[%clk 0:01:34]}  a3 {[%clk 0:00:52]} 23. Ba1 {[%clk 0:01:28]}  Bxe4 {[%clk 0:00:12]} 24. Bxe4 {[%clk 0:01:29]}  Kh7 {[%clk 0:00:07]} 25. Qd3 {[%clk 0:01:07]}  Kh6 {[%clk 0:00:02]} 26. Bxg6 {[%clk 0:01:02]}  Rxe1+ {[%clk 0:00:03]} 27. Rxe1 {[%clk 0:01:03]}  Qb6+ {[%clk 0:00:03]} 28. Kg2 {[%clk 0:00:56]}  Qxb4 {[%clk 0:00:03]} 29. Bxh5 {[%clk 0:00:41]}  Kxh5 {[%clk 0:00:02]} 30. Qh7+ {[%clk 0:00:40]}  Bh6 {[%clk 0:00:02]} 31. Qf5+ {[%clk 0:00:40]}  Bg5 {[%clk 0:00:02]} 32. Qxg5# {[%clk 0:00:40]} 1-0


[Site "https://www.chess.com"]